Cogmind - Beta 13 X2 @@@ ROGUE MODE // 2024.01.17 @ 11:08:17 Player: arkn Result: Destroyed by G-67 Veteran with Plasma Rifle Performance ------------- Evolutions (5) 2500 Regions Visited (11) 2200 Robots Destroyed (126) 630 Value Destroyed (5128) 5128 Prototype IDs (8) 160 Alien Tech Used (0) 0 Bonus (1294) 1294 TOTAL SCORE: 11912 Bonus ------- High Alert Combat Kills 1263 Follower Combat Kills 31 Cogmind --------- Core Integrity 0/1000 Matter 21/300 Energy 99/100 System Corruption 26% Temperature Cool (23) Movement Hovering (70) Location -5/Extension Parts ------- > --- POWER (2) -------- (None) > --- PROPULSION (6) --- Gyrokinetic Inverter > --- UTILITY (6) ------ Improved Transmission Jammer Advanced Hacking Suite > --- WEAPON (3) ------- (None) > --- INVENTORY (5) ---- High-capacity Storage Unit Advanced Sensor Array Advanced Sensor Array Heavy Machine Gun Axe Peak State ------------ > --- POWER ------------ Neutrino Core Antimatter Reactor > --- PROPULSION ------- Heavy Treads Heavy Treads Armored Huge Wheel > --- UTILITY ---------- Huge Storage Unit Advanced Sensor Array Advanced Signal Interpreter Advanced Melee Analysis Suite Hardened Heavy Armor Plating > --- WEAPON ----------- Improved Heavy Laser Cooled Plasma Cannon Power Maul > --- INVENTORY -------- Fission Core Fission Core Armored Huge Wheel Armored Huge Wheel Armored Huge Wheel Improved Cryofiber Web Improved Cooling System Improved Coolant Injector Stasis Canceller Hardened Heavy Armor Plating Improved System Restoration Module Drone Bay Tesla Rifle Long-range Proton Cannon Long-range Proton Cannon Advanced Plasma Cannon Hypervelocity Gauss Rifle Hypervelocity Coil Gun Magnetic Acceleration Cannon Improved Proton Missile Launcher Power Maul [Rating: 97] Favorites ----------- Power Neutrino Core Engine Light Angular Momentum Engine Power Core Neutrino Core Reactor Antimatter Reactor Propulsion Titanium Leg Treads Heavy Treads Leg Titanium Leg Wheel Armored Huge Wheel Hover Unit Backup Propulsion III Utility Huge Storage Unit Device Seismic Detector Storage Huge Storage Unit Processor Advanced Signal Interpreter Hackware Advanced Hacking Suite Protection Hardened Heavy Armor Plating Weapon Power Maul Energy Gun Improved Heavy Laser Energy Cannon Cooled Plasma Cannon Ballistic Gun Heavy Assault Rifle Ballistic Cannon Magnetic Acceleration Cannon Special Weapon Improved Plasma Cutter Impact Weapon Power Maul Slashing Weapon Chainsword Build | -11 -10 -9 -8 -7 -6 -6 -6 -5 -5 -5 -5 ------- Run | Yrd Mat Mat Mat Fac Fac Was Fac Fac Was Fac Ext Slots Evolved 10 | . . 2 2 2 2 . . 2 . . . Power 1 | . . . . 1 . . . . . . . Propulsion 4 | . . . 1 1 . . . 2 . . . Utility 4 | . . 2 . . 2 . . . . . . Weapon 1 | . . . 1 . . . . . . . . Parts Attached 192 | . 13 12 18 4 17 23 23 69 4 7 2 Power 26 | . 1 1 2 1 2 5 2 11 1 . . Engine 7 | . . 1 2 1 1 1 . 1 . . . Core 14 | . 1 . . . 1 3 1 8 . . . Reactor 5 | . . . . . . 1 1 2 1 . . Propulsion 32 | . 5 . 6 1 . 6 . 12 1 1 . Treads 11 | . 4 . 3 . . 4 . . . . . Leg 16 | . 1 . 3 1 . 2 . 8 1 . . Wheel 4 | . . . . . . . . 4 . . . Hover 1 | . . . . . . . . . . 1 . Flight . | . . . . . . . . . . . . Utility 79 | . 2 3 4 1 12 8 14 28 1 4 2 Device 50 | . 2 1 2 . 10 3 8 19 . 3 2 Storage 5 | . . . 1 1 1 . 1 1 . . . Processor 7 | . . . . . . . 3 3 1 . . Hackware 1 | . . . . . . . . . . 1 . Protection 16 | . . 2 1 . 1 5 2 5 . . . Artifact . | . . . . . . . . . . . . Weapon 55 | . 5 8 6 1 3 4 7 18 1 2 . Energy Gun 7 | . 2 . . . . . 3 2 . . . Energy Cannon 10 | . . . . . 1 1 1 7 . . . Ballistic Gun 13 | . 2 5 1 . . . . 4 1 . . Ballistic Cannon 8 | . . . 2 . 2 2 . 2 . . . Launcher . | . . . . . . . . . . . . Special Weapon 3 | . . . . . . . 1 . . 2 . Impact Weapon 12 | . 1 3 2 . . 1 2 3 . . . Slashing Weapon 2 | . . . 1 1 . . . . . . . Piercing Weapon . | . . . . . . . . . . . . Special Melee Weapon . | . . . . . . . . . . . . Unidentified Prototypes 8 | . . 1 . . . 1 1 5 . . . Parts Lost 73 | . 2 1 5 . 13 9 . 28 8 . 7 Power 9 | . . 1 1 . 1 2 . 3 1 . . Propulsion 18 | . 1 . 3 . 2 2 . 7 3 . . Utility 29 | . . . 1 . 7 4 . 11 2 . 4 Weapon 17 | . 1 . . . 3 1 . 7 2 . 3 Highest Loss Streak 12 | . 2 1 2 . 12 6 . 5 8 . 4 To Critical Strikes 1 | . . . . . 1 . . . . . . Average Slot Usage (%) 83 | . 90 100 92 100 97 62 78 80 68 31 40 Engine 3 | . 8 2 8 15 11 4 . . . . . Core 4 | . 5 8 . . 1 4 7 5 . . . Reactor 2 | . . . . . . 1 4 4 7 . . Treads 8 | . 9 22 19 . . 7 13 3 . . . Leg 9 | . 14 . 1 30 26 4 . 11 23 . . Wheel 2 | . . . . . . . . 6 . . . Device 13 | . 9 22 23 23 25 4 6 10 7 9 15 Storage 6 | . 14 11 9 7 6 1 5 5 3 . . Processor 4 | . . . . . . . 9 6 11 . . Protection 5 | . . 11 3 . 5 12 7 4 . . . Energy Gun 2 | . 15 . . . . 5 5 1 . . . Energy Cannon 3 | . . . . . . 3 6 5 3 . . Ballistic Gun 4 | . 12 19 14 7 . . . 1 8 5 2 Ballistic Cannon 3 | . . . 5 7 12 5 . 2 . . . Impact Weapon 3 | . . 2 5 . . 1 5 3 . . . Slashing Weapon 1 | . . . 1 7 6 . . . . . . Naked Turns 47 | . . . . . . 29 . . 18 . . Heaviest Build 170 | 13 17 21 33 113 143 92 170 154 137 16 23 Greatest Support 140 | 20 40 40 63 68 68 140 140 105 105 11 11 Greatest Overweight (x) 12 | . 1 . 1 1 2 12 1 5 6 4 2 Average Overweight (x) 1 | . . . . . 1 . . 3 . 2 1 Largest Inventory Capacity 25 | 8 8 8 10 25 25 20 25 25 25 5 5 Average Capacity 19 | 8 8 8 8 24 20 8 24 25 18 5 5 Most Carried 25 | 7 8 8 10 23 25 16 25 25 24 5 5 Average Carried 17 | 6 7 7 8 17 20 6 23 23 17 2 4 Final Capacity 25 | 8 8 8 10 25 20 5 25 25 5 5 5 Final Carried 25 | 6 8 7 10 23 17 5 25 23 5 4 5 Class Distribution -------------------- 57% | Mutant 29% | Scavenger-Mutant 4% | Scavenger-Gunner Dominant Class ---------------- Mutant | -10/Materials Mutant | -9/Materials Mutant | -8/Materials Mutant | -7/Factory Mutant | -6/Factory Mutant | -6/Waste Scavenger-Mutant | -6/Factory Mutant | -5/Factory Scavenger-Gunner | -5/Waste Mutant | -5/Factory Mutant | -5/Extension Resources | -11 -10 -9 -8 -7 -6 -6 -6 -5 -5 -5 -5 ----------- Run | Yrd Mat Mat Mat Fac Fac Was Fac Fac Was Fac Ext Matter Collected 3702 | 200 275 296 390 . 283 378 240 1640 . . . Remotely 644 | . 139 252 . . 253 . . . . . . Salvage Created 5694 | 69 371 391 367 . 251 610 528 3107 . . . Parts 267 | 4 29 28 19 . 19 10 26 132 . . . Haulers Intercepted 3 | . 1 2 . . . . . . . . . Recyclers Shooed 6 | . 1 . . . . . . 5 . . . Parts Field Recycled 11 | . . . . . 7 4 . . . . . Retrieved Matter 192 | . . . . . 175 17 . . . . . Parts Self-Destructed . | . . . . . . . . . . . . Prevented . | . . . . . . . . . . . . Kills | -11 -10 -9 -8 -7 -6 -6 -6 -5 -5 -5 -5 ------- Run | Yrd Mat Mat Mat Fac Fac Was Fac Fac Was Fac Ext Combat Hostiles Destroyed 101 | . 9 11 8 . 9 3 9 52 . . . Melee 3 | . 1 . . . . . . 2 . . . Guns 44 | . 7 11 6 . . 2 2 16 . . . Cannons 45 | . . . 2 . 8 1 5 29 . . . AOE 2 | . 1 . . . 1 . . . . . . Classes Destroyed 17 | 2 5 2 2 . 2 1 . 3 . . . Worker 5 | . . 1 . . . . 2 2 . . . Builder 5 | . . . 1 . . . 2 2 . . . Tunneler 1 | 1 . . . . . . . . . . . Hauler 3 | . 1 2 . . . . . . . . . Recycler 3 | 1 . . . . . . . 2 . . . Operator 2 | . 1 . . . . . . 1 . . . Watcher 6 | . 1 1 . . 1 . . 3 . . . Swarmer 25 | . 3 7 1 . 4 . . 10 . . . Saboteur 1 | . . . . . . . . 1 . . . Grunt 27 | . 6 3 3 . 1 . . 14 . . . Brawler 3 | . . . . . . . . 3 . . . Duelist 4 | . . . . . 1 . . 3 . . . Protector 1 | . . . . . . . . 1 . . . Sentry 15 | . . 1 3 . 1 . 5 5 . . . Hunter 3 | . . . 1 . . . . 2 . . . Programmer 19 | . . . . . 2 . 4 13 . . . Compactor 3 | . . . . . . 3 . . . . . Best Kill Streak 7 | 2 4 4 3 . 4 1 2 7 . . . Combat Bots Only 5 | . 4 4 3 . 4 1 2 5 . . . Max Kills in Single Turn 2 | 1 1 1 1 . 1 1 1 2 . . . Gunslinging . | . . . . . . . . . . . . Exploded 1 | . 1 . . . 1 . . . . . . Melee 1 | . 1 . . . . . . 1 . . . Uniques/NPCs Destroyed . | . . . . . . . . . . . . Combat | -11 -10 -9 -8 -7 -6 -6 -6 -5 -5 -5 -5 -------- Run | Yrd Mat Mat Mat Fac Fac Was Fac Fac Was Fac Ext Hostile Shots Fired 1139 | . 95 27 114 . 156 8 171 465 7 . 96 Missed 327 | . 36 10 32 . 43 . 73 105 . . 28 Damage Taken 14386 | . 810 169 1255 . 1820 356 922 7479 316 . 1259 Core 1881 | . 197 11 120 . 254 153 134 577 164 . 271 Absorbed by Shields 51 | . . . . . . . . . . . 51 Ignored by Resistances 51 | . . . . . 36 . . 15 . . . Core Remaining (%) 72 | 100 21 97 78 100 . . 36 . . . . Volleys Fired 406 | 3 34 26 40 . 27 65 32 172 3 4 . Largest 3 | 2 2 2 3 . 2 3 2 3 3 1 . Hottest 224 | 80 80 46 85 . 151 151 145 224 147 20 . Shots Fired 812 | 6 67 52 98 . 54 88 54 380 9 4 . Gun 421 | 6 67 52 75 . . 66 23 126 6 . . Cannon 383 | . . . 23 . 54 22 27 254 3 . . Launcher . | . . . . . . . . . . . . Special 8 | . . . . . . . 4 . . 4 . Kinetic 418 | . 42 52 98 . 50 14 . 156 6 . . Thermal 284 | 3 . . . . 4 74 44 155 . 4 . Explosive . | . . . . . . . . . . . . Electromagnetic 106 | 3 25 . . . . . 6 69 3 . . Robot Hit Streak 18 | 3 4 15 14 . 6 18 9 11 5 . . Robot Miss Streak 5 | 3 5 3 3 . 3 3 3 5 1 . . Penetration Max 3 | . . . . . . . . 3 . . . Secondary Targets 3 | . . 1 1 . . . . 1 . . . Max Gunslinging Chain 1 | . . 1 1 . . . . 1 . . . Shots Hit Robots 532 | 3 34 39 64 . 36 70 40 239 7 . . Core Hits 201 | 3 17 15 18 . 15 14 13 105 1 . . Critical Kills 9 | . . . . . . . 2 7 . . . Critical Parts Destroyed 11 | . . . 1 . . . 2 8 . . . Critical Strikes 31 | . . . 2 . 3 . 4 22 . . . Burn 1 | . . . . . . . . 1 . . . Meltdown 2 | . . . . . . . 1 1 . . . Destroy 13 | . . . 1 . . . . 12 . . . Blast 9 | . . . 1 . 3 . . 5 . . . Corrupt 1 | . . . . . . . . 1 . . . Smash 5 | . . . . . . . 3 2 . . . Melee Attacks 107 | . . 14 13 6 11 2 20 41 . . . Impact 88 | . . 14 11 . . 2 20 41 . . . Slashing 19 | . . . 2 6 11 . . . . . . Piercing . | . . . . . . . . . . . . Sneak Attacks 10 | . . 4 . . . . 4 2 . . . Combat Hostiles . | . . . . . . . . . . . . Follow-up Attacks . | . . . . . . . . . . . . Damage Inflicted 15234 | 36 659 814 978 . 1469 1145 1658 8322 153 . . Guns 4970 | 36 522 563 713 . . 671 339 1976 150 . . Cannons 7999 | . . . 263 . 1139 474 649 5471 3 . . Explosions 903 | . 128 . . . 288 . 326 161 . . . Melee 1271 | . . 247 . . 42 . 344 638 . . . Ramming 91 | . 9 4 2 . . . . 76 . . . Kinetic 5998 | . 350 563 976 . 1073 252 . 2634 150 . . Thermal 6387 | 23 128 . . . 66 893 1298 3979 . . . Explosive 288 | . . . . . 288 . . . . . . Electromagnetic 1199 | 13 172 . . . . . 16 995 3 . . Impact 1229 | . . 247 . . . . 344 638 . . . Slashing 42 | . . . . . 42 . . . . . . Piercing . | . . . . . . . . . . . . Highest Corruption 26 | . . . . . 1 1 . 21 26 26 26 Average Corruption 12 | . . . . . 1 1 . 13 16 26 26 Corruption Purged 18 | . . . . . . 1 . 17 . . . Corruption Blocked . | . . . . . . . . . . . . Effects 169 | . . . . . 5 1 . 140 4 10 9 Message Errors 35 | . . . . . 1 . . 30 . 2 2 Matter Fused 41 | . . . . . . 1 . 32 2 4 2 Heat Flow Errors 19 | . . . . . 2 . . 15 . . 2 Energy Discharges 20 | . . . . . 1 . . 15 2 1 1 Parts Fused 1 | . . . . . . . . . . 1 . Data Loss (minor) 23 | . . . . . . . . 21 . 1 1 Data Loss (major) 13 | . . . . . 1 . . 11 . 1 . Misfires 5 | . . . . . . . . 5 . . . Alerts 3 | . . . . . . . . 3 . . . Misdirections 2 | . . . . . . . . 1 . . 1 Weapon Failures 7 | . . . . . . . . 7 . . . Overload Shots 1 | . . . . . . . 1 . . . . Overflow Damage 848 | . . 60 3 . 14 . 354 417 . . . Projectiles 231 | . . . 3 . 14 . 77 137 . . . Explosions 67 | . . . . . . . 67 . . . . Melee 550 | . . 60 . . . . 210 280 . . . Knockbacks 34 | . . . 4 . 11 . 3 16 . . . Impact 5 | . . . . . . . 3 2 . . . Kinetic 29 | . . . 4 . 11 . . 14 . . . Secondary . | . . . . . . . . . . . . Self-Inflicted Damage 369 | . 46 . . . 113 . 149 61 . . . Shots 5 | . 1 . . . 1 . 2 1 . . . Rammed 8 | . . 1 1 . . . . 6 . . . Targets Rammed 11 | . 2 1 1 . . . . 7 . . . Kicked 2 | . 1 . . . . . . 1 . . . Crushed 1 | . 1 . . . . . . . . . . Highest Temperature 618 | 36 18 1 90 . 212 372 354 618 . . 255 Average Temperature 149 | 22 5 1 19 . 96 211 160 144 . . 110 Received Heat Transfer 2974 | . 384 42 477 . 243 . 144 1084 . . 600 Effects 31 | . . . . . . 2 2 27 . . . Shutdowns 8 | . . . . . . . 1 7 . . . Energy Bleed 4 | . . . . . . 1 1 2 . . . Interference 5 | . . . . . . . . 5 . . . Matter Decay 2 | . . . . . . . . 2 . . . Short Circuit 4 | . . . . . . 1 . 3 . . . Damage (minor) 2 | . . . . . . . . 2 . . . Damage (major) 6 | . . . . . . . . 6 . . . Siege Activations . | . . . . . . . . . . . . Robots Corrupted 2 | . . . . . . . . 2 . . . Combat Hostiles 2 | . . . . . . . . 2 . . . Parts Fried 21 | . . 2 . . . . 6 13 . . . Impact Corruptions 22 | . . 3 . . . . 7 12 . . . Robots Melted 5 | . . . . . . . 2 3 . . . Combat Hostiles 5 | . . . . . . . 2 3 . . . Parts Melted 18 | . . . . . . . 4 14 . . . Heat Transferred 8245 | 50 100 . . . 100 2274 1611 4110 . . . Parts Sabotaged 2 | . . . . . . . . 2 . . . Parts Stolen . | . . . . . . . . . . . . Parts Stripped . | . . . . . . . . . . . . Power Chain Reactions 2 | . 1 . . . . . . 1 . . . Missiles Intercepted . | . . . . . . . . . . . . Alert | -11 -10 -9 -8 -7 -6 -6 -6 -5 -5 -5 -5 ------- Run | Yrd Mat Mat Mat Fac Fac Was Fac Fac Was Fac Ext Peak Influence 1538 | 10 163 154 170 15 101 35 321 1538 536 319 171 Initial 536 | . 6 16 . . . 12 . 140 536 319 156 Average 288 | 8 55 45 68 4 25 3 74 801 509 319 147 Maximum Alert Level 4 | . . . . . . . 1 4 2 1 . Low Security (%) 69 | 100 100 100 100 100 100 100 86 18 . . 100 Level 1 7 | . . . . . . . 13 7 . 100 . Level 2 5 | . . . . . . . . 13 100 . . Level 3 6 | . . . . . . . . 21 . . . Level 4 11 | . . . . . . . . 39 . . . Level 5 . | . . . . . . . . . . . . High Security . | . . . . . . . . . . . . Max Security . | . . . . . . . . . . . . Squads Dispatched 28 | . 4 3 . 1 4 . 4 12 . . . Investigation 5 | . 1 2 . . . . . 2 . . . Extermination 10 | . . . . 1 2 . 4 3 . . . Reinforcement 8 | . 3 1 . . 2 . . 2 . . . Assault 5 | . . . . . . . . 5 . . . Garrison . | . . . . . . . . . . . . Intercept . | . . . . . . . . . . . . Searches Triggered . | . . . . . . . . . . . . Construction Impeded 2 | . . . . . 1 . . 1 . . . Haulers Reinforced . | . . . . . . . . . . . . Active Scanning Responses . | . . . . . . . . . . . . Cargo Convoy Interrupts . | . . . . . . . . . . . . Stealth | -11 -10 -9 -8 -7 -6 -6 -6 -5 -5 -5 -5 --------- Run | Yrd Mat Mat Mat Fac Fac Was Fac Fac Was Fac Ext Distress Signals 10 | . 2 1 1 . 1 . . 5 . . . Communications Jammed . | . . . . . . . . . . . . Distress Signals . | . . . . . . . . . . . . Times Spotted 184 | . 25 14 15 . 14 7 12 88 4 . 5 Peak Tracking Total 10 | . 6 4 6 1 6 4 2 10 4 . 5 Tactical Retreats 15 | . 2 . 1 . 1 1 . 10 . . . Traps | -11 -10 -9 -8 -7 -6 -6 -6 -5 -5 -5 -5 ------- Run | Yrd Mat Mat Mat Fac Fac Was Fac Fac Was Fac Ext Traps Triggered 12 | . 3 1 . . 4 . . 2 . . 2 Indirectly . | . . . . . . . . . . . . Trap Hack Attempts . | . . . . . . . . . . . . Triggered . | . . . . . . . . . . . . Disarmed . | . . . . . . . . . . . . Reprogrammed . | . . . . . . . . . . . . Reused . | . . . . . . . . . . . . Traps Extracted . | . . . . . . . . . . . . Installed . | . . . . . . . . . . . . Triggered . | . . . . . . . . . . . . Machines | -11 -10 -9 -8 -7 -6 -6 -6 -5 -5 -5 -5 ---------- Run | Yrd Mat Mat Mat Fac Fac Was Fac Fac Was Fac Ext Machines Disabled 18 | . . . 1 . 2 . 7 8 . . . Max in Single Turn 6 | . . . 1 . 1 . 6 1 . . . Garrison Access 5 | . . . 1 . . . . 4 . . . Machines Repaired . | . . . . . . . . . . . . Machines Dismantled 2 | . . . . . . . . . . 2 . Machines Sabotaged . | . . . . . . . . . . . . Overloaded Fab Kills . | . . . . . . . . . . . . Hacking | -11 -10 -9 -8 -7 -6 -6 -6 -5 -5 -5 -5 --------- Run | Yrd Mat Mat Mat Fac Fac Was Fac Fac Was Fac Ext Machines Accessed 32 | . 3 6 5 1 2 . 9 5 . . 1 Terminals 22 | . 3 6 4 1 1 . 5 1 . . 1 Fabricators 1 | . . . . . 1 . . . . . . Repair Stations 2 | . . . . . . . 2 . . . . Recycling Units 2 | . . . . . . . 2 . . . . Scanalyzers . | . . . . . . . . . . . . Garrison Access 5 | . . . 1 . . . . 4 . . . Total Hacks 95 | . 12 22 14 8 7 . 19 11 . . 2 Successful 38 | . 2 8 7 6 6 . 4 4 . . 1 Failed 57 | . 10 14 7 2 1 . 15 7 . . 1 Catastrophic 6 | . . 1 . . 1 . 2 2 . . . Database Lockouts . | . . . . . . . . . . . . Manual 57 | . 12 13 10 5 6 . 9 2 . . . Terminals 73 | . 12 22 12 8 4 . 11 2 . . 2 Fabricators 3 | . . . . . 3 . . . . . . Repair Stations 4 | . . . . . . . 4 . . . . Recycling Units 4 | . . . . . . . 4 . . . . Scanalyzers . | . . . . . . . . . . . . Garrison Access 11 | . . . 2 . . . . 9 . . . Terminal Hacks 19 | . 1 6 3 4 2 . 1 1 . . 1 Open Door 1 | . . . . . . . . . . . 1 Terminal Index 5 | . 1 1 . 1 1 . 1 . . . . Alert Level 4 | . . . 1 1 1 . . 1 . . . Unreport Threat 1 | . . 1 . . . . . . . . . Locate Traps 2 | . . 1 1 . . . . . . . . Hauler Manifests 1 | . . 1 . . . . . . . . . Zone Layout 4 | . . 2 1 1 . . . . . . . Patrol Navigation 1 | . . . . 1 . . . . . . . Fabricator Hacks . | . . . . . . . . . . . . Repair Station Hacks 2 | . . . . . . . 2 . . . . Scan Component 1 | . . . . . . . 1 . . . . Repair 1 | . . . . . . . 1 . . . . Recycling Unit Hacks . | . . . . . . . . . . . . Scanalyzer . | . . . . . . . . . . . . Garrison Access Hacks 3 | . . . 1 . . . . 2 . . . Seal Access 3 | . . . 1 . . . . 2 . . . Unauthorized Hacks 14 | . 1 2 3 2 4 . 1 1 . . . Terminals 10 | . 1 2 2 2 2 . 1 . . . . Track 3 | . . . 1 1 1 . . . . . . Botnet 7 | . 1 2 1 1 1 . 1 . . . . Fabricators 2 | . . . . . 2 . . . . . . Liberate 1 | . . . . . 1 . . . . . . Fabnet 1 | . . . . . 1 . . . . . . Repair Stations . | . . . . . . . . . . . . Recycling Units . | . . . . . . . . . . . . Scanalyzers . | . . . . . . . . . . . . Garrison Access 2 | . . . 1 . . . . 1 . . . Watchers 1 | . . . 1 . . . . . . . . Jam 1 | . . . . . . . . 1 . . . Data Cores Recovered 1 | . 1 . . . . . . . . . . Used . | . . . . . . . . . . . . Hacking Detections 30 | . 3 6 5 1 1 . 9 4 . . 1 Full Trace Events 3 | . 1 1 . . . . . 1 . . . Feedback Events . | . . . . . . . . . . . . Feedback Blocked . | . . . . . . . . . . . . Robot Schematics Acquired . | . . . . . . . . . . . . Robots Built . | . . . . . . . . . . . . Authchips . | . . . . . . . . . . . . Time . | . . . . . . . . . . . . Total Robot Build Rating . | . . . . . . . . . . . . Part Schematics Acquired . | . . . . . . . . . . . . Parts Built . | . . . . . . . . . . . . Authchips . | . . . . . . . . . . . . Time . | . . . . . . . . . . . . Total Part Build Rating . | . . . . . . . . . . . . Parts Repaired 1 | . . . . . . . 1 . . . . Time 43 | . . . . . . . 43 . . . . Parts Recycled . | . . . . . . . . . . . . Recycled Matter . | . . . . . . . . . . . . Retrieved Matter . | . . . . . . . . . . . . Retrieved Components . | . . . . . . . . . . . . Parts Scanalyzed . | . . . . . . . . . . . . Part Schematics Acquired . | . . . . . . . . . . . . Parts Damaged . | . . . . . . . . . . . . Bothacking | -11 -10 -9 -8 -7 -6 -6 -6 -5 -5 -5 -5 ------------ Run | Yrd Mat Mat Mat Fac Fac Was Fac Fac Was Fac Ext Used RIF Installer . | . . . . . . . . . . . . Robots Hacked 4 | . . . . . . . . 4 . . . Non-combat . | . . . . . . . . . . . . Combat 4 | . . . . . . . . 4 . . . Robot Hacks Applied . | . . . . . . . . . . . . Relay Couplers Released 2 | . . . . . . . . 2 . . . Machine Destruction 2 | . . . . . . . . 2 . . . Fabnet Peak Effective % 3 | . . . . . . . . 3 3 3 3 Autooverrided 4 | . . . . . . . . 4 . . . Robots Rewired . | . . . . . . . . . . . . Allies Hacked . | . . . . . . . . . . . . Hacks Repelled . | . . . . . . . . . . . . Allies | -11 -10 -9 -8 -7 -6 -6 -6 -5 -5 -5 -5 -------- Run | Yrd Mat Mat Mat Fac Fac Was Fac Fac Was Fac Ext Total Allies 24 | . . . . . . 19 . 4 . . 1 Largest Group 19 | . . . . . . 19 . 2 . . . Highest-Rated Group 702 | . . . . . . 702 . 54 . . . Highest-Rated Ally 54 | . . . . . . 50 . 54 . . . Total Orders . | . . . . . . . . . . . . Ally Attacks 130 | . . . . . . 123 . 6 . . 1 Total Damage 4733 | . . . . . . 4618 . 94 . . 21 Kills 8 | . . . . . . 6 . 2 . . . Allies Corrupted . | . . . . . . . . . . . . Allies Melted . | . . . . . . . . . . . . Intel | -11 -10 -9 -8 -7 -6 -6 -6 -5 -5 -5 -5 ------- Run | Yrd Mat Mat Mat Fac Fac Was Fac Fac Was Fac Ext Robot Analysis Total . | . . . . . . . . . . . . Derelict Logs Recovered . | . . . . . . . . . . . . Drone Launches 3 | . . . . . . . . . . . 3 Drone Recoveries 3 | . . . . . . . . . . . 3 Exploration | -11 -10 -9 -8 -7 -6 -6 -6 -5 -5 -5 -5 ------------- Run | Yrd Mat Mat Mat Fac Fac Was Fac Fac Was Fac Ext Turns Passed 13737 | 29 802 1443 857 914 1347 754 2831 4191 125 302 142 Spaces Moved 6114 | 16 476 550 344 444 476 303 1283 1917 83 127 95 Core 210 | . . . . . . 61 . . 45 104 . Treads 2477 | . 168 550 309 . . 167 1283 . . . . Legs 1635 | 16 308 . 35 444 476 36 . 282 38 . . Wheels 1635 | . . . . . . . . 1635 . . . Hover 157 | . . . . . . 39 . . . 23 95 Flight . | . . . . . . . . . . . . Fastest Speed 50 | 120 120 160 130 130 200 50 160 130 50 110 70 Average Speed 174 | 120 134 160 168 193 200 168 201 166 133 196 116 Slowest Speed 650 | 120 190 160 240 200 270 650 240 262 540 250 150 Overloaded Moves . | . . . . . . . . . . . . Propulsion Burnouts . | . . . . . . . . . . . . Robots Hopped . | . . . . . . . . . . . . Cave-ins Triggered . | . . . . . . . . . . . . Exploration Rate (%) 38 | 2 78 54 39 12 15 87 30 48 80 3 19 Regions Visited 11 Branch Regions 1 Pre-discovered Areas . | . . . . . . . . . . . . Known Exits Taken 1 | . . . . . . . 1 . . . . Unknown Exits Taken 6 | 1 1 1 1 1 . . . . . 1 . Scrap Searched . | . . . . . . . . . . . . Spaces Dug 81 | . . 9 10 6 10 2 16 28 . . . Terrain Destroyed 254 | . 2 9 10 6 53 3 87 84 . . . Melee 80 | . . 9 10 6 10 2 15 28 . . . Projectile 78 | . . . . . 18 1 7 52 . . . AOE 96 | . 2 . . . 25 . 65 4 . . . Terrain Rammed . | . . . . . . . . . . . . Walls Destroyed . | . . . . . . . . . . . . Machines Disabled . | . . . . . . . . . . . . Actions | -11 -10 -9 -8 -7 -6 -6 -6 -5 -5 -5 -5 --------- Run | Yrd Mat Mat Mat Fac Fac Was Fac Fac Was Fac Ext Total 8187 | 20 571 1039 517 491 805 456 1442 2477 89 157 123 Wait 1070 | . 28 428 78 22 246 51 28 184 . 4 1 Move 6106 | 15 476 549 343 443 476 302 1282 1917 82 126 95 Hop . | . . . . . . . . . . . . Pick Up 152 | 1 10 4 12 15 10 2 34 59 . 3 2 Fast Attach 42 | . 4 1 6 . 1 12 2 9 2 3 2 Attach 67 | . 2 3 4 2 6 7 5 34 . 4 . Detach 3 | . . . . . . 1 2 . . . . Swap 83 | . 7 8 8 2 10 4 16 26 2 . . Drop 99 | 1 9 5 12 1 13 10 21 26 . . 1 Fire 406 | 3 34 26 40 . 27 65 32 172 3 4 . Melee 107 | . . 14 13 6 11 2 20 41 . . . Ram 6 | . . . . . . . . 6 . . . Kick 2 | . 1 . . . . . . 1 . . . Crush 2 | . . 1 1 . . . . . . . . Escape Stasis 24 | . . . . . 5 . . . . . 19 Rewire 2 | . . . . . . . . 2 . . . Trap . | . . . . . . . . . . . . Miscellaneous 16 | . . . . . . . . . . 13 3 Route ------- -11/Scrapyard -10/Materials (discovered 2 exits: *Mat / [*Min]) -9/Materials (discovered 3 exits: *Mat / [*Min x2]) -8/Materials -7/Factory (discovered 2 exits: *Fac / [*Low]) -6/Factory -6/Waste -6/Factory (discovered 3 exits: *Fac / *Low x2) -5/Factory (discovered 3 exits: *Fac / *Upp / *Ext) -5/Waste -5/Factory -5/Extension History --------- Turn | Location | Event 11 | -11/Scrapyard | Discovered new exit (range 3) 30 | -11/Scrapyard | Entered Materials 232 | -10/Materials | Discovered new exit (range 15) 310 | -10/Materials | Build established: Mutant 472 | -10/Materials | Core integrity fell below 50% 688 | -10/Materials | Discovered new exit (range 7) 832 | -10/Materials | Entered another Materials area 832 | -9/Materials | Evolved 2 slots: Utility x2 1951 | -9/Materials | Discovered new exit (range 15) 2198 | -9/Materials | Discovered new exit (range 20) 2217 | -9/Materials | Discovered new exit (range 16) 2275 | -9/Materials | Entered another Materials area 2275 | -8/Materials | Evolved 2 slots: Propulsion x1, Weapon x1 2878 | -8/Materials | Discovered new exit (range 7) 3132 | -8/Materials | Entered Factory 3132 | -7/Factory | Evolved 2 slots: Power x1, Propulsion x1 3330 | -7/Factory | Discovered new exit (range 15) 3568 | -7/Factory | Discovered new exit (range 7) 4046 | -7/Factory | Entered another Factory area 4046 | -6/Factory | Evolved 2 slots: Utility x2 4662 | -6/Factory | Discovered new exit (range 13) 5393 | -6/Factory | Sucked down chute 5393 | -6/Factory | Entered Waste 5424 | -6/Waste | Lost 12 parts (1p2n6u3w) 5496 | -6/Waste | Spotted C-40 Crusher 5526 | -6/Waste | Spotted C-40 Crusher 5535 | -6/Waste | Spotted C-40 Crusher 5557 | -6/Waste | Crushed by Compactor (1 part destroyed, 1 dropped) 5557 | -6/Waste | Spotted C-40 Crusher 5560 | -6/Waste | Crushed by Compactor (1 part destroyed, 2 dropped) 5563 | -6/Waste | Crushed by Compactor (1 part destroyed, 2 dropped) 5566 | -6/Waste | Crushed by Compactor (1 part destroyed, 2 dropped) 5568 | -6/Waste | Crushed by Compactor (1 part destroyed) 5581 | -6/Waste | Warlord forces began an assault 5599 | -6/Waste | Lost 6 parts (2p2n2u) 5690 | -6/Waste | Spotted C-40 Crusher 5704 | -6/Waste | Crushed by Compactor (2 parts destroyed) 5708 | -6/Waste | Crushed by Compactor (1 part destroyed, 2 dropped) 5739 | -6/Waste | Lost 3 parts (2u1w) 5741 | -6/Waste | Destroyed C-40 Crusher 5827 | -6/Waste | Destroyed C-40 Crusher 5838 | -6/Waste | Found Damper Plating 5887 | -6/Waste | Spotted C-40 Crusher 5950 | -6/Waste | Destroyed C-40 Crusher 6108 | -6/Waste | Discovered new exit (range 10) 6147 | -6/Waste | Entered Factory 6217 | -6/Factory | Build established: Scavenger-Tank 6606 | -6/Factory | Build established: Scavenger-Mutant 6755 | -6/Factory | Discovered new exit (range 11) 6850 | -6/Factory | Discovered new exit (range 8) 7011 | -6/Factory | Identified exit to Lower Caves 7496 | -6/Factory | Repaired Broken Antimatter Reactor 7782 | -6/Factory | Core integrity fell below 50% 8876 | -6/Factory | Discovered new exit (range 14) 8942 | -6/Factory | Identified exit to Factory 8978 | -6/Factory | Entered another Factory area 8978 | -5/Factory | Evolved 2 slots: Propulsion x2 9794 | -5/Factory | Local machine network offline 10257 | -5/Factory | System corruption reached 10% 10278 | -5/Factory | Lost 3 parts (1p1n1u) 10366 | -5/Factory | Discovered new exit (range 4) 10371 | -5/Factory | Identified exit to Upper Caves 10478 | -5/Factory | First assault squad dispatched 10487 | -5/Factory | Lost 3 parts (1n1u1w) 10498 | -5/Factory | Build established: Mutant 10571 | -5/Factory | Lost 5 parts (1n2u2w) 10905 | -5/Factory | Lost 3 parts (1p1n1w) 11263 | -5/Factory | Discovered new exit (range 4) 12448 | -5/Factory | Core integrity fell below 50% 12484 | -5/Factory | Discovered new exit (range 16) 12699 | -5/Factory | Lost 4 parts (1p2u1w) 12941 | -5/Factory | Build established: Scavenger-Gunner 13145 | -5/Factory | Identified exit to Factory 13169 | -5/Factory | Sucked down chute 13169 | -5/Factory | Entered Waste 13184 | -5/Waste | EMP discharged 13211 | -5/Waste | Spotted C-40 Crusher 13218 | -5/Waste | Spotted C-40 Crusher 13236 | -5/Waste | Spotted C-40 Crusher 13239 | -5/Waste | Spotted C-40 Crusher 13249 | -5/Waste | Crushed by Compactor (1 part destroyed, 2 dropped) 13252 | -5/Waste | Crushed by Compactor (1 part destroyed, 2 dropped) 13254 | -5/Waste | Crushed by Compactor (1 part destroyed, 1 dropped) 13255 | -5/Waste | Crushed by Compactor (1 part destroyed, 2 dropped) 13257 | -5/Waste | Crushed by Compactor (1 part destroyed, 2 dropped) 13258 | -5/Waste | Crushed by Compactor (1 part destroyed, 1 dropped) 13270 | -5/Waste | Discovered new exit (range 16) 13284 | -5/Waste | EMP discharged 13289 | -5/Waste | Lost 8 parts (1p3n2u2w) 13294 | -5/Waste | Entered Factory 13574 | -5/Factory | Build established: Mutant 13590 | -5/Factory | Discovered new exit (range 5) 13596 | -5/Factory | Entered Extension 13655 | -5/Extension | Core integrity fell below 20% 13704 | -5/Extension | Lost 4 parts (2u2w) 13736 | -5/Extension | Rescued a captive Derelict 13738 | -5/Extension | Destroyed by G-67 Veteran with Plasma Rifle Last Messages --------------- 13719_ Field strength at 55. 13720_ Field strength at 48. 13721_ Field strength at 41. 13722_ Field strength at 34. 13723_ Field strength at 16. 13724_ Field strength at 9. 13724_ U-05 Engineer lays Concrete. 13725_ Stasis field depleted. 13725_ U-05 Engineer lays Concrete. 13726_ Critical hit (Burn: +50). 13732_ Adv. Drone Bay destroyed. 13734_ Dismantling Sealed Heavy Doors with Imp. Plasma Cutter. 13734_ Adv. Drone Bay destroyed. 13735_ Imp. Plasma Cutter destroyed. 13736_ Connecting with Door Terminal... 13736_ Current location identified: Extension >>Open(Door) Sealed Heavy Doors opened. 13736_ 0R-UT0(g): "Free at last!" 13738_ |=6BVAA&2WJ>PR%NV